lending/lending_fUSD_20240807
["ID","MTS","AMOUNT","RATE_DAILY","PERIOD"]
[334370695,1722997867143,-787.48,0.00010958,2]
[334370696,1722997867152,-1966.14,0.00010958,2]
[334370697,1722997867162,-787.48,0.00010958,2]
[334370698,1722997867172,-1966.14,0.00010958,2]
[334370699,1722997867181,-787.48,0.00010958,2]
[334370700,1722997867191,-1966.14,0.00010958,2]
[334370701,1722997867200,-787.48,0.00010958,2]
[334370702,1722997867210,-1966.14,0.00010958,2]
[334370703,1722997867219,-787.48,0.00010958,2]
[334370704,1722997867229,-1966.14,0.00010958,2]
[334370705,1722997867239,-787.48,0.00010958,2]
[334370706,1722997867248,-1966.14,0.00010958,2]
[334370707,1722997867257,-787.48,0.00010958,2]
[334370708,1722997867268,-787.48,0.00010958,2]
[334370709,1722997867277,-1966.14,0.00010958,2]
[334370710,1722997867558,-787.48,0.00010958,2]
[334370711,1722997867568,-1966.14,0.00010958,2]
[334370712,1722997867578,-787.48,0.00010958,2]
[334370713,1722997867588,-1966.14,0.00010958,2]
[334370714,1722997867604,-787.48,0.00010958,2]
[334370715,1722997867615,-1966.14,0.00010958,2]
[334370716,1722997867627,-787.48,0.00010958,2]
[334370717,1722997867637,-1966.3408275,0.00010958,2]
[334370718,1722997867647,-787.48,0.00010958,2]
[334370719,1722997867657,-787.48,0.00010958,2]
[334370720,1722997867666,-787.48,0.00010958,2]
[334370721,1722997867676,-787.56,0.00010958,2]
[334370722,1722997867686,-2481.96,0.00010958,2]
[334370723,1722997867696,-2481.96,0.00010958,2]
[334370724,1722997867706,-2481.96,0.00010958,2]
[334370725,1722997867716,-2481.96,0.00010958,2]
[334370726,1722997867726,-2481.96,0.00010958,2]
[334370727,1722997867736,-2481.96,0.00010958,2]
[334370728,1722997867746,-2481.96,0.00010958,2]
[334370729,1722997867755,-2481.96,0.00010958,2]
[334370730,1722997867764,-2481.96,0.00010958,2]
[334370731,1722997867775,-1330.33,0.00010958,2]
[334370732,1722997867784,-1330.33,0.00010958,2]
[334370733,1722997867793,-2481.96,0.00010958,2]
[334370734,1722997867803,-1330.33,0.00010958,2]
[334370735,1722997867813,-1330.33,0.00010958,2]
[334370736,1722997867822,-2481.96,0.00010958,2]
[334370737,1722997867832,-1330.33,0.00010958,2]
[334370738,1722997867842,-2481.96,0.00010958,2]
[334370739,1722997867857,-1330.33,0.00010958,2]
[334370740,1722997867867,-2481.96,0.00010958,2]
[334370741,1722997867878,-1330.33,0.00010958,2]
[334370742,1722997867890,-2481.96,0.00010958,2]
[334370743,1722997867899,-1330.33,0.00010958,2]
[334370744,1722997867908,-2481.96,0.00010958,2]
[334370745,1722997867919,-1330.33,0.00010958,2]
[334370746,1722997867929,-2481.96,0.00010958,2]
[334370747,1722997867940,-1330.33,0.00010958,2]
[334370748,1722997867950,-2481.96,0.00010958,2]
[334370749,1722997867962,-1330.33,0.00010958,2]
[334370750,1722997867972,-2481.96,0.00010958,2]
[334370751,1722997867982,-1330.33,0.00010958,2]
[334370752,1722997867992,-2481.96,0.00010958,2]
[334370753,1722997868002,-1330.33,0.00010958,2]
[334370754,1722997868012,-2481.96,0.00010958,2]
[334370755,1722997868021,-171.63408115,0.00010958,2]
[334370756,1722997868044,-5964.20591885,0.00010958,2]
[334370757,1722997868055,-1330.33,0.00010958,2]
[334370758,1722997868064,-1330.33,0.00010958,2]
[334370759,1722997868075,-6135.84,0.00010958,2]
[334370760,1722997868085,-2481.96,0.00010958,2]
[334370761,1722997868097,-6135.84,0.00010958,2]
[334370762,1722997868107,-1330.33,0.00010958,2]
[334370763,1722997868117,-2481.96,0.00010958,2]
[334370764,1722997868127,-6135.84,0.00010958,2]
[334370765,1722997868138,-1330.33,0.00010958,2]
[334370766,1722997868148,-1330.33,0.00010958,2]
[334370767,1722997868158,-6135.84,0.00010958,2]
[334370768,1722997868168,-1330.33,0.00010958,2]
[334370769,1722997868178,-6135.84,0.00010958,2]
[334370770,1722997868188,-1330.33,0.00010958,2]
[334370771,1722997868198,-6135.84,0.00010958,2]
[334370772,1722997868210,-1330.33,0.00010958,2]
[334370773,1722997868219,-6135.84,0.00010958,2]
[334370774,1722997868229,-1330.33,0.00010958,2]
[334370775,1722997868238,-6135.84,0.00010958,2]
[334370776,1722997868248,-1330.33,0.00010958,2]
[334370777,1722997868257,-6135.84,0.00010958,2]
[334370778,1722997868267,-1330.33176911,0.00010958,2]
[334370779,1722997868276,-6135.84,0.00010958,2]
[334370780,1722997868286,-500.0,0.00010958,2]
[334370781,1722997868295,-6135.84,0.00010958,2]
[334370782,1722997868305,-500.0,0.00010958,2]
[334370783,1722997868316,-6135.84,0.00010958,2]
[334370784,1722997868327,-500.0,0.00010958,2]
[334370785,1722997868337,-6135.84,0.00010958,2]
[334370786,1722997868348,-500.0,0.00010958,2]
[334370787,1722997868358,-6135.84,0.00010958,2]
[334370788,1722997868368,-500.0,0.00010958,2]
[334370789,1722997868378,-6135.84,0.00010958,2]
[334370790,1722997868388,-500.0,0.00010958,2]
[334370791,1722997868397,-6135.84,0.00010958,2]
[334370792,1722997868407,-446.60949362,0.00010958,2]
[334370793,1722997868418,-6135.84,0.00010958,2]
[334370794,1722997868428,-2481.96,0.00010958,2]
[334370795,1722997868438,-6135.84,0.00010958,2]
[334370796,1722997868448,-6135.84,0.00010958,2]
[334370797,1722997868458,-2482.09113146,0.00010958,2]
[334370798,1722997868468,-714.78098564,0.00010958,2]
[334370799,1722997868485,-460.92787144,0.00010958,2]
[334370800,1722997869441,-307.982,9.899e-05,2]
[334370801,1722997869453,-4917.538,9.899e-05,2]
[334370803,1722997869462,-532.1848691,0.00010857,2]
[334370804,1722997869472,-144.18524707,0.00010953,2]
[334370805,1722997869483,-1526.81475293,0.00010953,2]
[334370806,1722997869493,-1089.0,0.00010958,2]
[334370807,1722997869502,-4960.13114292,0.00010958,2]
[334370808,1722997869511,-4991.85,0.00010958,2]
[334370809,1722997869521,-6135.84,0.00010958,2]
[334370810,1722997869531,-4991.85,0.00010958,2]
[334370811,1722997869541,-4497.35617899,0.00010958,2]
[334370812,1722997869552,-1517.35428072,0.00010958,2]
[334370813,1722997869564,-121.12954029,0.00010958,2]
[334370814,1722997869574,-1096.51512614,0.00010958,2]
[334370815,1722997869585,-3895.33487386,0.00010958,2]
[334370816,1722997869598,-6136.06469613,0.00010958,2]
[334370817,1722997869608,-4991.85,0.00010958,2]
[334370818,1722997869618,-4991.85,0.00010958,2]
[334370819,1722997869628,-4991.85,0.00010958,2]
[334370820,1722997869638,-4991.85,0.00010958,2]
[334370821,1722997869648,-4991.85,0.00010958,2]
[334370822,1722997869657,-4991.85,0.00010958,2]
[334370823,1722997869667,-4991.85,0.00010958,2]
[334370824,1722997869677,-4991.85,0.00010958,2]
[334370825,1722997869687,-4991.85,0.00010958,2]
[334370826,1722997869696,-4991.85,0.00010958,2]
[334370827,1722997869706,-4991.85,0.00010958,2]
[334370828,1722997869715,-1726.36631652,0.00010958,2]
[334370829,1722997869748,-800.0,0.00010958,2]
[334370830,1722997869760,-2465.48368348,0.00010958,2]
[334370831,1722997869770,-4991.85,0.00010958,2]
[334370832,1722997869780,-4991.85,0.00010958,2]
[334370833,1722997869790,-4991.85,0.00010958,2]
[334370834,1722997869799,-1611.52956989,0.00010958,2]
[334370835,1722997869812,-3380.32043011,0.00010958,2]
[334370836,1722997869821,-4991.85,0.00010958,2]
[334370837,1722997869831,-4414.1536526,0.00010958,2]
[334370925,1722998000915,500.0,0.00024932,120]
[334370927,1722998006939,211.24,0.00021589,30]
[334370930,1722998023260,1155.87,8.219e-05,2]
[334370932,1722998026942,150.0,0.000246,30]
[334370936,1722998223010,194.83,8.219e-05,2]
[334370937,1722998262936,155.23039839,8.219e-05,2]
[334370938,1722998272002,871.61874262,8.219e-05,2]
[334370939,1722998274467,2741.46079709,8.219e-05,2]
[334370940,1722998274972,1534.63775422,8.219e-05,2]
[334370941,1722998275673,227.67484022,8.219e-05,2]
[334370942,1722998276957,1222.86024952,8.219e-05,2]
[334370943,1722998277254,425.59163485,8.219e-05,2]
[334370944,1722998278661,692.66620014,8.219e-05,2]
[334370945,1722998278780,158.83612492,8.219e-05,2]
[334370946,1722998279261,1158.43634607,8.219e-05,2]
[334370954,1722998302986,6693.9,9.115e-05,2]
[334370955,1722998317768,253.0,9.036e-05,2]
[334370964,1722998340683,250.0,9.021e-05,2]
[334370965,1722998365908,1000.0,8.992e-05,2]
[334370967,1722998378546,1081.18,8.998e-05,2]
[334370968,1722998381325,227.67484022,9.115e-05,2]
[334370969,1722998388661,268.36,8.998e-05,2]
[334370970,1722998429683,872.38,9.153e-05,2]
[334370974,1722998462310,1245.75,9.056e-05,2]
[334370982,1722998512021,193.63,0.00021589,30]
[334370990,1722998538386,1150.29,8.219e-05,2]
[334370993,1722998562155,1076.39,9.15e-05,2]
[334370997,1722998603643,500.0,0.00024932,120]
[334371013,1722998761771,1362.07,9.081e-05,2]
[334371035,1722998903540,-1846.6455,9.648e-05,2]
[334371036,1722998903568,-4197.00653944,9.74e-05,2]
[334371037,1722998903598,-153.06,9.74e-05,2]
[334371038,1722998903628,-153.06,9.744e-05,2]
[334371039,1722998903658,-153.06,9.748e-05,2]
[334371040,1722998903688,-153.06,9.752e-05,2]
[334371041,1722998903722,-77.58297233,9.757e-05,2]
[334371042,1722998903760,-75.47702767,9.757e-05,2]
[334371043,1722998903789,-153.06,9.761e-05,2]
[334371044,1722998903819,-300.0,9.763e-05,2]
[334371045,1722998903848,-150.0,9.763e-05,2]
[334371046,1722998903876,-6054.9379841,9.764e-05,2]
[334371047,1722998903912,-3945.0520159,9.764e-05,2]
[334371048,1722998903941,-2788.42299587,9.764e-05,2]
[334371049,1722998903979,-302.56700413,9.764e-05,2]
[334371050,1722998904014,-499.99,9.764e-05,2]
[334371051,1722998904043,-5930.91800764,9.764e-05,2]
[334371052,1722998904080,-6733.47501177,9.764e-05,2]
[334371053,1722998904125,-6733.47501177,9.764e-05,2]
[334371054,1722998904165,-6733.47501177,9.764e-05,2]
[334371055,1722998904201,-3868.64695705,9.764e-05,2]
[334371056,1722998904234,-2864.82805472,9.764e-05,2]
[334371057,1722998904271,-6733.47501177,9.764e-05,2]
[334371058,1722998904307,-401.68693351,9.764e-05,2]
[334371059,1722998904335,-1896.49,9.764e-05,2]
[334371060,1722998904364,-1830.55,9.764e-05,2]
[334371061,1722998904394,-153.06,9.765e-05,2]
[334371062,1722998904423,-2451.68807826,9.765e-05,2]
[334371063,1722998904462,-6510.03668813,9.765e-05,2]
[334371064,1722998904515,-6733.47501177,9.765e-05,2]
[334371065,1722998904555,-6733.47501177,9.765e-05,2]
[334371066,1722998904588,-6733.47501177,9.765e-05,2]
[334371067,1722998906106,150.0,9.136e-05,2]
[334371068,1722998906129,50.0,9.136e-05,2]
[334371360,1722999032367,-169.13,9.566e-05,2]
[334371361,1722999032377,-713.20461522,9.665e-05,2]
[334371362,1722999032389,-756.03810701,9.665e-05,2]
[334371363,1722999032400,-391.73167777,9.665e-05,2]
[334371364,1722999032409,-790.97923936,9.758e-05,2]
[334371365,1722999032420,-1761.65639133,9.758e-05,2]
[334371366,1722999032433,-59148.04306511,9.758e-05,2]
[334371367,1722999032442,-4750.7001983,9.765e-05,2]
[334371368,1722999032451,-150.99,9.765e-05,2]
[334371369,1722999032461,-299.99,9.765e-05,2]
[334371370,1722999032470,-14065.58555536,9.765e-05,2]
[334371371,1722999032479,-153.06,9.769e-05,2]
[334371372,1722999032488,-153.06,9.773e-05,2]
[334371373,1722999032497,-153.06,9.777e-05,2]
[334371374,1722999032506,-225.5,9.777e-05,2]
[334371375,1722999032516,-153.06,9.781e-05,2]
[334371376,1722999032525,-153.06,9.785e-05,2]
[334371377,1722999032534,-153.06,9.789e-05,2]
[334371378,1722999032543,-264.69,9.822e-05,2]
[334371379,1722999032553,-172.8,9.954e-05,2]
[334371380,1722999032562,-1550.0,0.0001,2]
[334371381,1722999032572,-1000.0,0.00010116,2]
[334371382,1722999032581,-200.0,0.00010278,2]
[334371383,1722999032595,-1000.0,0.00010358,2]
[334371384,1722999032605,-2549.5628,0.00010369,2]
[334371385,1722999032615,-2912.3845,0.00010369,2]
[334371386,1722999032625,-4581.85747888,0.0001038,2]
[334371387,1722999032634,-14145.5261,0.0001039,2]
[334371388,1722999032644,-27368.9799,0.0001039,2]
[334371389,1722999032653,-175.9436,0.0001039,2]
[334371390,1722999032663,-1415.3231,0.0001039,2]
[334371391,1722999032672,-1150.29,0.00010429,2]
[334371392,1722999032682,-287.57952797,0.00010458,2]
[334371393,1722999032693,-314.72218928,0.00010458,2]
[334371394,1722999032702,-37543.3919,0.00010458,2]
[334371395,1722999032711,-16678.7041,0.00010458,2]
[334371396,1722999032721,-1286.6942,0.00010458,2]
[334371397,1722999032730,-1732.9632,0.00010458,2]
[334371398,1722999032740,-818.2562,0.00010458,2]
[334371399,1722999032749,-469.6005,0.00010558,2]
[334371400,1722999032759,-39122.4185,0.00010558,2]
[334371401,1722999032768,-100000.0,0.00010558,2]
[334371402,1722999032777,-500.0,0.00010558,2]
[334371403,1722999032787,-230643.34458878,0.00010558,2]
[334371404,1722999032798,-2838.96116943,0.00010558,2]
[334371405,1722999032810,-8606.23695535,0.00010558,2]
[334371406,1722999032821,-2911.45728644,0.00010558,2]
[334371407,1722999032830,-164.65548515,0.00010558,2]
[334371408,1722999032842,-1624.53,0.00010574,2]
[334371409,1722999032852,-829.87445959,0.000106,2]
[334371410,1722999032863,-180.12554041,0.000106,2]
[334371411,1722999032873,-314.72218928,0.00010605,2]
[334371412,1722999032884,-449.64071164,0.000107,2]
[334371413,1722999032895,-1202.46363093,0.000107,2]
[334371414,1722999032906,-274.89565743,0.000107,2]
[334371416,1722999032915,-255.0,0.00010739,2]
[334371417,1722999032924,-314.72218928,0.00010753,2]
[334371419,1722999032934,-3000.0,0.0001085,2]
[334371421,1722999032943,-2806.0556,0.00010851,2]
[334371423,1722999032952,-532.1848691,0.00010857,2]
[334371424,1722999032961,-532.1848691,0.00010858,2]
[334371426,1722999032970,-196.58439707,0.00010858,2]
[334371428,1722999032979,-193.64669933,0.00010858,2]
[334371430,1722999032989,-381.71721631,0.00010858,2]
[334371431,1722999032998,-12429.054896,0.00010858,2]
[334371433,1722999033007,-2992.3997,0.00010858,2]
[334371434,1722999033017,-196.58439707,0.00010879,2]
[334371435,1722999033026,-381.71721631,0.00010879,2]
[334371436,1722999033036,-12429.054896,0.00010879,2]
[334371437,1722999033045,-500.0,0.00010891,2]
[334371438,1722999033055,-925.96689222,0.00010899,2]
[334371439,1722999033064,-925.96689221,0.00010899,2]
[334371440,1722999033073,-925.96689221,0.00010899,2]
[334371441,1722999033082,-925.96689221,0.00010899,2]
[334371442,1722999033099,-925.96689221,0.00010899,2]
[334371443,1722999033108,-925.96689221,0.00010899,2]
[334371444,1722999033118,-925.96689221,0.00010899,2]
[334371445,1722999033128,-925.96689221,0.00010899,2]
[334371446,1722999033139,-925.96689221,0.00010899,2]
[334371447,1722999033149,-1000.0,0.000109,2]
[334371448,1722999033159,-196.58439707,0.000109,2]
[334371449,1722999033169,-925.96689221,0.000109,2]
[334371450,1722999033178,-381.71721631,0.000109,2]
[334371451,1722999033187,-12429.054896,0.000109,2]
[334371452,1722999033197,-151.81,0.000109,2]
[334371453,1722999033206,-314.72218928,0.000109,2]
[334371454,1722999033216,-155.20748646,0.00010906,2]
[334371455,1722999033226,-192.00687722,0.00010906,2]
[334371456,1722999033235,-151.81,0.00010941,2]
[334371457,1722999033244,-151.81,0.00010948,2]
[334371458,1722999033254,-151.81,0.00010948,2]
[334371459,1722999033265,-151.81,0.00010948,2]
[334371460,1722999033277,-815.2683372,0.00010951,2]
[334371461,1722999033286,-4509.7343929,0.00010951,2]
[334371462,1722999033295,-11487.5073843,0.00010951,2]
[334371463,1722999033305,-20526.73819245,0.00010955,2]
[334371464,1722999033315,-1000.0,0.00010956,2]
[334371465,1722999033324,-1025.0,0.00010958,2]
[334371466,1722999033334,-500.0,0.00010958,2]
[334371467,1722999033345,-500.0,0.00010958,2]
[334371468,1722999033355,-500.0,0.00010958,2]
[334371469,1722999033365,-500.0,0.00010958,2]
[334371470,1722999033375,-500.0,0.00010958,2]
[334371471,1722999033385,-500.50159093,0.00010958,2]
[334371472,1722999033395,-500.4179609,0.00010958,2]
[334371473,1722999033403,-500.71612775,0.00010958,2]
[334371474,1722999033413,-500.09845517,0.00010958,2]
[334371475,1722999033422,-500.0,0.00010958,2]
[334371476,1722999033432,-500.0,0.00010958,2]
[334371477,1722999033442,-500.19629426,0.00010958,2]
[334371478,1722999033452,-500.72683571,0.00010958,2]
[334371479,1722999033461,-500.0,0.00010958,2]
[334371480,1722999033470,-500.0,0.00010958,2]
[334371481,1722999033479,-501.49029498,0.00010958,2]
[334371482,1722999033489,-500.0,0.00010958,2]
[334371483,1722999033498,-500.0,0.00010958,2]
[334371484,1722999033507,-500.0,0.00010958,2]
[334371485,1722999033517,-500.0,0.00010958,2]
[334371486,1722999033526,-500.0,0.00010958,2]
[334371487,1722999033535,-500.0,0.00010958,2]
[334371488,1722999033545,-500.0,0.00010958,2]
[334371489,1722999033554,-500.0,0.00010958,2]
[334371490,1722999033563,-500.0,0.00010958,2]
[334371491,1722999033573,-500.0,0.00010958,2]
[334371492,1722999033582,-402.70485391,0.00010958,2]
[334371493,1722999033592,-500.0,0.00010958,2]
[334371494,1722999033601,-500.0,0.00010958,2]
[334371495,1722999033611,-500.0,0.00010958,2]
[334371496,1722999033620,-500.0,0.00010958,2]
[334371497,1722999033630,-500.0,0.00010958,2]
[334371498,1722999033639,-500.0,0.00010958,2]
[334371499,1722999033648,-500.0,0.00010958,2]
[334371500,1722999033658,-500.0,0.00010958,2]
[334371501,1722999033667,-500.0,0.00010958,2]
[334371502,1722999033676,-500.0,0.00010958,2]
[334371503,1722999033685,-500.0,0.00010958,2]
[334371504,1722999033695,-500.0,0.00010958,2]
[334371505,1722999033704,-222.62207469,0.00010958,2]
[334371506,1722999033714,-598.73336735,0.00010958,2]
[334371507,1722999033723,-500.0,0.00010958,2]
[334371508,1722999033733,-500.0,0.00010958,2]
[334371509,1722999033742,-500.0,0.00010958,2]
[334371510,1722999033752,-500.0,0.00010958,2]
[334371511,1722999033761,-500.0,0.00010958,2]
[334371512,1722999033771,-500.0,0.00010958,2]
[334371513,1722999033782,-500.0,0.00010958,2]
[334371514,1722999033792,-535.68604227,0.00010958,2]
[334371515,1722999033801,-500.0,0.00010958,2]
[334371516,1722999033810,-500.0,0.00010958,2]
[334371517,1722999033820,-500.0,0.00010958,2]
[334371518,1722999033829,-500.0,0.00010958,2]
[334371519,1722999033838,-500.0,0.00010958,2]
[334371520,1722999033848,-500.0,0.00010958,2]
[334371521,1722999033858,-500.0,0.00010958,2]
[334371522,1722999033867,-490.21566032,0.00010958,2]
[334371523,1722999033876,-665.35,0.00010958,2]
[334371524,1722999033886,-665.35,0.00010958,2]
[334371525,1722999033895,-665.35,0.00010958,2]
[334371526,1722999033905,-665.35,0.00010958,2]
[334371527,1722999033915,-665.35,0.00010958,2]
[334371528,1722999033924,-665.35,0.00010958,2]
[334371529,1722999033933,-665.35,0.00010958,2]
[334371530,1722999033942,-151.0,0.00010958,2]
[334371531,1722999033952,-665.35,0.00010958,2]
[334371532,1722999033962,-161.564774,0.00010958,2]
[334371533,1722999033971,-665.35,0.00010958,2]
[334371534,1722999033981,-665.35,0.00010958,2]
[334371535,1722999033990,-665.35,0.00010958,2]
[334371536,1722999034001,-665.35,0.00010958,2]
[334371537,1722999034010,-665.35,0.00010958,2]
[334371538,1722999034020,-665.35,0.00010958,2]
[334371539,1722999034029,-665.35,0.00010958,2]
[334371540,1722999034040,-502.41506445,0.00010958,2]
[334371541,1722999034308,-665.35,0.00010958,2]
[334371542,1722999034318,-665.35,0.00010958,2]
[334371543,1722999034328,-665.35,0.00010958,2]
[334371544,1722999034338,-665.35,0.00010958,2]
[334371545,1722999034351,-665.35,0.00010958,2]
[334371546,1722999034360,-665.35,0.00010958,2]
[334371547,1722999034370,-665.35,0.00010958,2]
[334371548,1722999034379,-500.0,0.00010958,2]
[334371549,1722999034389,-500.0,0.00010958,2]
[334371550,1722999034398,-665.35,0.00010958,2]
[334371551,1722999034408,-500.0,0.00010958,2]
[334371552,1722999034418,-665.40419641,0.00010958,2]
[334371553,1722999034428,-500.0,0.00010958,2]
[334371554,1722999034438,-500.0,0.00010958,2]
[334371555,1722999034448,-500.0,0.00010958,2]
[334371556,1722999034459,-500.0,0.00010958,2]
[334371557,1722999034469,-500.0,0.00010958,2]
[334371558,1722999034478,-332.29032818,0.00010958,2]
[334371559,1722999034487,-500.0,0.00010958,2]
[334371560,1722999034496,-500.0,0.00010958,2]
[334371561,1722999034506,-500.0,0.00010958,2]
[334371562,1722999034515,-500.0,0.00010958,2]
[334371563,1722999034525,-500.0,0.00010958,2]
[334371564,1722999034535,-500.0,0.00010958,2]
[334371565,1722999034544,-500.0,0.00010958,2]
[334371566,1722999034553,-500.0,0.00010958,2]
[334371567,1722999034563,-500.0,0.00010958,2]
[334371568,1722999034577,-500.0,0.00010958,2]
[334371569,1722999034587,-529.44,0.00010958,2]
[334371570,1722999034596,-500.0,0.00010958,2]
[334371571,1722999034606,-500.0,0.00010958,2]
[334371572,1722999034615,-500.0,0.00010958,2]
[334371573,1722999034625,-500.0,0.00010958,2]
[334371574,1722999034634,-500.0,0.00010958,2]
[334371575,1722999034643,-500.0,0.00010958,2]
[334371576,1722999034653,-500.0,0.00010958,2]
[334371577,1722999034664,-231.3445178,0.00010958,2]
[334371578,1722999034674,-378.99184531,0.00010958,2]
[334371579,1722999034683,-500.0,0.00010958,2]
[334371580,1722999034692,-500.0,0.00010958,2]
[334371581,1722999034702,-500.0,0.00010958,2]
[334371582,1722999034712,-500.0,0.00010958,2]
[334371583,1722999034721,-500.0,0.00010958,2]
[334371584,1722999034731,-500.0,0.00010958,2]
[334371585,1722999034740,-500.0,0.00010958,2]
[334371586,1722999034751,-500.0,0.00010958,2]
[334371587,1722999034762,-845.12,0.00010958,2]
[334371588,1722999034772,-500.0,0.00010958,2]
[334371589,1722999034781,-845.12,0.00010958,2]
[334371590,1722999034792,-500.0,0.00010958,2]
[334371591,1722999034803,-845.12,0.00010958,2]
[334371592,1722999034814,-500.0,0.00010958,2]
[334371593,1722999034824,-845.12,0.00010958,2]
[334371594,1722999034833,-500.0,0.00010958,2]
[334371595,1722999034845,-845.12,0.00010958,2]
[334371596,1722999034857,-500.0,0.00010958,2]
[334371597,1722999034867,-845.12,0.00010958,2]
[334371598,1722999034877,-500.0,0.00010958,2]
[334371599,1722999034887,-845.12,0.00010958,2]
[334371600,1722999034897,-500.0,0.00010958,2]
[334371601,1722999034908,-845.12,0.00010958,2]
[334371602,1722999034917,-500.0,0.00010958,2]
[334371603,1722999034927,-845.12,0.00010958,2]
[334371604,1722999034936,-517.17313964,0.00010958,2]
[334371605,1722999034946,-845.12,0.00010958,2]
[334371606,1722999034956,-845.12,0.00010958,2]
[334371607,1722999034965,-845.12,0.00010958,2]
[334371608,1722999034975,-845.12,0.00010958,2]
[334371609,1722999034985,-845.12,0.00010958,2]
[334371610,1722999034994,-845.12,0.00010958,2]
[334371611,1722999035004,-845.12,0.00010958,2]
[334371612,1722999035013,-845.12,0.00010958,2]
[334371613,1722999035023,-500.0,0.00010958,2]
[334371614,1722999035032,-845.12,0.00010958,2]
[334371615,1722999035042,-500.0,0.00010958,2]
[334371616,1722999035051,-845.12,0.00010958,2]
[334371617,1722999035061,-500.0,0.00010958,2]
[334371618,1722999035070,-845.12,0.00010958,2]
[334371619,1722999035079,-500.0,0.00010958,2]
[334371620,1722999035089,-845.12,0.00010958,2]
[334371621,1722999035099,-500.0,0.00010958,2]
[334371622,1722999035108,-845.12,0.00010958,2]
[334371623,1722999035118,-845.12,0.00010958,2]
[334371624,1722999035128,-845.25513383,0.00010958,2]
[334371625,1722999035138,-761.06,0.00010958,2]
[334371626,1722999035147,-761.06,0.00010958,2]
[334371627,1722999035157,-761.06,0.00010958,2]
[334371628,1722999035167,-761.06,0.00010958,2]
[334371629,1722999035176,-761.06,0.00010958,2]
[334371630,1722999035186,-761.06,0.00010958,2]
[334371631,1722999035196,-761.06,0.00010958,2]
[334371632,1722999035206,-761.06,0.00010958,2]
[334371633,1722999035215,-761.06,0.00010958,2]
[334371634,1722999035225,-761.06,0.00010958,2]
[334371635,1722999035235,-761.06,0.00010958,2]
[334371636,1722999035244,-761.06,0.00010958,2]
[334371637,1722999035254,-761.06,0.00010958,2]
[334371638,1722999035264,-761.06,0.00010958,2]
[334371639,1722999035276,-761.06,0.00010958,2]
[334371640,1722999035285,-761.06,0.00010958,2]
[334371641,1722999035295,-761.06,0.00010958,2]
[334371642,1722999035305,-761.06,0.00010958,2]
[334371643,1722999035316,-761.06,0.00010958,2]
[334371644,1722999035325,-761.06,0.00010958,2]
[334371645,1722999035335,-761.06,0.00010958,2]
[334371646,1722999035349,-761.06,0.00010958,2]
[334371647,1722999035359,-761.06,0.00010958,2]
[334371648,1722999035368,-761.1394317,0.00010958,2]
[334371649,1722999035377,-500.0,0.00010958,2]
[334371650,1722999035387,-151.244599,0.00010958,2]
[334371651,1722999035397,-2367.37,0.00010958,2]
[334371652,1722999035412,-2367.37,0.00010958,2]
[334371653,1722999035428,-2367.37,0.00010958,2]
[334371654,1722999035438,-2367.37,0.00010958,2]
[334371655,1722999035448,-2367.37,0.00010958,2]
[334371656,1722999035458,-2367.37,0.00010958,2]
[334371657,1722999035467,-2367.37,0.00010958,2]
[334371658,1722999035477,-2367.37,0.00010958,2]
[334371659,1722999035487,-2367.37,0.00010958,2]
[334371660,1722999035497,-2367.37,0.00010958,2]
[334371661,1722999035506,-2367.37,0.00010958,2]
[334371662,1722999035517,-2367.37,0.00010958,2]